fUSD/lending_fUSD_20260404
["ID","MTS","AMOUNT","RATE_DAILY","PERIOD"]
[419709644,1775329844181,-3404.4923786,0.0001568,2]
[419709645,1775329844190,-150.0,0.0001568,2]
[419709646,1775329844200,-150.0,0.0001568,2]
[419709647,1775329844210,-150.0,0.0001568,2]
[419709648,1775329844219,-1049.492877,0.0001568,2]
[419709649,1775329844228,-1026.38652084,0.0001568,2]
[419709650,1775329844237,-1107.5683165,0.0001568,2]
[419709651,1775329844246,-1062.388853,0.0001568,2]
[419709652,1775329844255,-1054.32085047,0.0001568,2]
[419709653,1775329844264,-1025.08680752,0.0001568,2]
[419709654,1775329844273,-1318.74003053,0.0001568,2]
[419709655,1775329844282,-500.0,0.00015694,2]
[419709656,1775329844291,-151.0,0.00015694,2]
[419709657,1775329844301,-150.0,0.00015695,2]
[419709658,1775329844310,-235.0,0.00015696,2]
[419709659,1775329844319,-5888.0,0.00015699,2]
[419709660,1775329844328,-1979.71839249,0.000157,2]
[419709661,1775329844337,-2000.0,0.00015701,2]
[419709662,1775329844347,-150.0,0.00015705,2]
[419709663,1775329844356,-150.0,0.00015709,2]
[419709664,1775329844365,-1003.62269392,0.00015712,2]
[419709665,1775329844375,-194609.24030404,0.0001572,2]
[419709666,1775329844384,-150.0,0.00015724,2]
[419709667,1775329844393,-150.0,0.00015724,2]
[419709668,1775329844403,-150.0,0.00015733,2]
[419709669,1775329844412,-235.0,0.00015734,2]
[419709670,1775329844421,-200.0,0.00015747,2]
[419709671,1775329844430,-1481.23780761,0.00015747,2]
[419709672,1775329844439,-771.01748645,0.00015747,2]
[419709673,1775329844448,-181.08010149,0.00015747,2]
[419709674,1775329844459,-200.0,0.00015747,2]
[419709675,1775329844468,-290.26104003,0.00015747,2]
[419709676,1775329844478,-150.0,0.00015747,2]
[419709677,1775329844488,-500.0,0.00015749,2]
[419709678,1775329844497,-151.0,0.00015749,2]
[419709679,1775329844506,-245.407609,0.00015753,2]
[419709680,1775329844516,-150.0,0.0001576,2]
[419709681,1775329844526,-150.0,0.00015771,2]
[419709682,1775329844535,-150.0,0.00015779,2]
[419709683,1775329844544,-150.0,0.00015779,2]
[419709684,1775329844553,-150.0,0.00015787,2]
[419709685,1775329844563,-150.0,0.00015789,2]
[419709686,1775329844572,-4334.8389295,0.000158,2]
[419709687,1775329844582,-2379.5317136,0.000158,2]
[419709688,1775329844591,-2000.0,0.000158,2]
[419709689,1775329844602,-2000.0,0.00015801,2]
[419709690,1775329844612,-150.385,0.00015803,2]
[419709691,1775329844622,-150.0,0.00015803,2]
[419709692,1775329844632,-180.914,0.00015803,2]
[419709693,1775329844641,-150.165,0.00015803,2]
[419709694,1775329844650,-150.0,0.00015803,2]
[419709695,1775329844659,-150.0,0.00015803,2]
[419709696,1775329844669,-150.0,0.00015803,2]
[419709697,1775329844678,-150.0,0.00015803,2]
[419709698,1775329844687,-622.0,0.00015803,2]
[419709699,1775329844696,-1347.0,0.00015803,2]
[419709700,1775329844706,-1050.983,0.00015803,2]
[419709701,1775329844716,-3521.0,0.00015803,2]
[419709702,1775329844726,-1277.641,0.00015803,2]
[419709703,1775329844735,-150.0,0.00015803,2]
[419709704,1775329844964,-785.54,0.0001581,2]
[419709705,1775329844974,-150.0,0.00015832,2]
[419709706,1775329844984,-150.0,0.00015834,2]
[419709707,1775329844994,-150.0,0.00015834,2]
[419709708,1775329845003,-150.0,0.0001584,2]
[419709709,1775329845012,-150.0,0.0001584,2]
[419709710,1775329845023,-150.0,0.0001584,2]
[419709711,1775329845032,-2000.0,0.0001584,2]
[419709712,1775329845042,-2000.0,0.0001584,2]
[419709713,1775329845053,-1600.0,0.00015846,2]
[419709714,1775329845062,-150.0,0.00015848,2]
[419709715,1775329845072,-2000.0,0.0001585,2]
[419709716,1775329845081,-150.0,0.00015855,2]
[419709717,1775329845090,-150.0,0.00015859,2]
[419709718,1775329845100,-500.0,0.00015871,2]
[419709719,1775329845109,-200.0,0.00015871,2]
[419709720,1775329845119,-500.0,0.00015872,2]
[419709721,1775329845128,-200.0,0.00015872,2]
[419709722,1775329845138,-150.0,0.00015874,2]
[419709723,1775329845149,-5888.0,0.00015885,2]
[419709724,1775329845159,-194.0,0.00015885,2]
[419709725,1775329845168,-150.0,0.0001589,2]
[419709726,1775329845179,-150.0,0.0001589,2]
[419709727,1775329845188,-500.0,0.0001589,2]
[419709728,1775329845198,-519.17533645,0.0001589,2]
[419709729,1775329845207,-150.0,0.00015893,2]
[419709730,1775329845217,-153.15026946,0.00015898,2]
[419709731,1775329845226,-604.90515633,0.000159,2]
[419709732,1775329845236,-15810.41681312,0.000159,2]
[419709733,1775329845246,-2792.71210592,0.000159,2]
[419709734,1775329845255,-9510.75832828,0.000159,2]
[419709735,1775329845264,-2189.0,0.000159,5]
[419709736,1775329845274,-2000.0,0.00015901,2]
[419709738,1775329845284,-150.0,0.00015916,2]
[419709740,1775329845293,-150.0,0.0001592,2]
[419709742,1775329845303,-150.0,0.00015924,2]
[419709744,1775329845312,-160.0,0.0001594,2]
[419709745,1775329845321,-150.0,0.00015945,2]
[419709746,1775329845331,-150.0,0.00015945,2]
[419709747,1775329845341,-150.0,0.00015947,2]
[419709748,1775329845350,-1000.0,0.00015951,2]
[419709749,1775329845359,-1000.0,0.00015951,2]
[419709750,1775329845368,-246.472,0.00015951,2]
[419709751,1775329845379,-150.0,0.00015958,2]
[419709752,1775329845389,-150.0,0.00015971,2]
[419709753,1775329845399,-500.0,0.00015973,2]
[419709754,1775329845408,-178.83121777,0.00015973,2]
[419709755,1775329845418,-500.0,0.00015973,2]
[419709756,1775329845428,-500.0,0.00015973,2]
[419709757,1775329845438,-500.0,0.00015973,2]
[419709758,1775329845447,-500.0,0.00015973,2]
[419709759,1775329845456,-500.0,0.00015973,2]
[419709760,1775329845466,-500.0,0.00015973,2]
[419709761,1775329845476,-500.0,0.00015973,2]
[419709762,1775329845485,-500.0,0.00015973,2]
[419709763,1775329845495,-500.0,0.00015973,2]
[419709764,1775329845505,-312.69903259,0.00015973,2]
[419709765,1775329845514,-500.0,0.00015973,2]
[419709766,1775329845523,-500.0,0.00015973,2]
[419709767,1775329845533,-500.0,0.00015973,2]
[419709768,1775329845543,-500.0,0.00015975,2]
[419709769,1775329845552,-102994.9721354,0.00015976,2]
[419709770,1775329845562,-500.0,0.00015998,2]
[419709771,1775329845573,-180947.0992244,0.00015999,2]
[419709772,1775329845583,-1406.4854137,0.00015999,2]
[419709773,1775329845592,-22443.5051607,0.00015999,2]
[419709774,1775329845602,-1881.51906,0.00015999,2]
[419709775,1775329845611,-1881.51906,0.00015999,2]
[419709776,1775329845620,-1881.51906,0.00015999,2]
[419709777,1775329845630,-1881.51906,0.00015999,2]
[419709778,1775329845639,-500.0,0.00015999,2]
[419709779,1775329845648,-500.0,0.00015999,2]
[419709780,1775329845658,-500.0,0.00015999,2]
[419709781,1775329845667,-500.0,0.00015999,2]
[419709782,1775329845676,-500.0,0.00015999,2]
[419709783,1775329845685,-500.0,0.00015999,2]
[419709784,1775329845695,-500.0,0.00015999,2]
[419709785,1775329845704,-500.0,0.00015999,2]
[419709786,1775329845714,-500.0,0.00015999,2]
[419709787,1775329845723,-500.0,0.00015999,2]
[419709788,1775329845732,-500.0,0.00015999,2]
[419709789,1775329845743,-500.0,0.00015999,2]
[419709790,1775329845754,-500.0,0.00015999,2]
[419709791,1775329845763,-500.0,0.00015999,2]
[419709792,1775329845773,-500.0,0.00015999,2]
[419709793,1775329845785,-500.0,0.00015999,2]
[419709794,1775329845794,-500.0,0.00015999,2]
[419709795,1775329845804,-500.0,0.00015999,2]
[419709796,1775329845813,-500.0,0.00015999,2]
[419709797,1775329845824,-500.0,0.00015999,2]
[419709798,1775329845834,-500.0,0.00015999,2]
[419709799,1775329845844,-500.0,0.00015999,2]
[419709800,1775329845854,-500.0,0.00015999,2]
[419709801,1775329845864,-500.0,0.00015999,2]
[419709802,1775329845873,-500.0,0.00015999,2]
[419709803,1775329845883,-500.0,0.00015999,2]
[419709804,1775329845893,-500.0,0.00015999,2]
[419709805,1775329845904,-500.0,0.00015999,2]
[419709806,1775329845913,-500.0,0.00015999,2]
[419709807,1775329845923,-500.0,0.00015999,2]
[419709808,1775329845932,-242.62789815,0.00015999,2]
[419709809,1775329845942,-150.0,0.00016,2]
[419709810,1775329845951,-150.0,0.00016,2]
[419709811,1775329845960,-150.0,0.00016,2]
[419709812,1775329845969,-150.0,0.00016,2]
[419709813,1775329845979,-150.0,0.00016,2]
[419709814,1775329845990,-150.0,0.00016,2]
[419709815,1775329845999,-150.0,0.00016,2]
[419709816,1775329846009,-150.0,0.00016,2]
[419709817,1775329846020,-150.0,0.00016,2]
[419709818,1775329846029,-150.0,0.00016,2]
[419709819,1775329846039,-735628.70529519,0.00016,2]
[419709820,1775329846634,-1522.79825836,0.00016,2]
[419709821,1775329846646,-5861.0,0.00016,2]
[419709822,1775329846658,-426.61846658,0.00016,2]
[419709823,1775329846670,-1338.79842845,0.00016,2]
[419709825,1775329847478,-647.71542185,0.00012872,2]
[419709828,1775329847488,-500.0,0.00012872,2]
[419709829,1775329847497,-413143.71257993,0.00012873,2]
[419709830,1775329847539,-222.31830364,0.00012872,2]
[419709831,1775329847548,-54.67917355,0.00012873,2]
[419709832,1775329849742,-18799.28192885,0.00012873,2]
[419709833,1775329849760,-417.37929,0.00012873,2]
[419709834,1775330166475,-2650.0,0.000126,5]
[419709848,1775331031679,-3501.0,0.000112,5]
[419709849,1775331031689,-300.0,0.00012007,2]
[419709850,1775331031699,-1200.0,0.00012007,2]
[419709851,1775331031709,-3705.16495616,0.00012008,2]
[419709852,1775331031720,-8663.27504384,0.00012008,2]
[419709853,1775331031730,-1660.9685,0.00012068,2]
[419709854,1775331031740,-2901.19172207,0.00012073,2]
[419709855,1775331031752,-1466.46,0.00012073,2]
[419709856,1775331031763,-969.80549567,0.00012073,2]
[419709857,1775331031850,-11629.66314198,0.00012073,2]
[419709858,1775331031916,-59.45199165,0.00012073,2]
[419709859,1775331031926,-150.0,0.00012167,2]
[419709860,1775331031937,-12917.59138198,0.00012168,2]
[419709861,1775331031964,-1654.43931179,0.00012168,2]
[419709867,1775331037896,-1822.82670332,0.00012168,2]
[419709868,1775331038057,-173055.13260291,0.00012168,2]
[419709869,1775331038066,-500.0,0.00012173,2]
[419709870,1775331038077,-386.01505148,0.00012173,2]
[419709872,1775331038087,-500.0,0.00012173,2]
[419709874,1775331038097,-1071.94,0.00012322,2]
[419709876,1775331038106,-17026.57235128,0.00012498,2]
[419709878,1775331038116,-2514.14805996,0.00012543,2]
[419709880,1775331038125,-10523.99379801,0.00012572,2]
[419709882,1775331038134,-1979.71839249,0.000126,2]
[419709884,1775331038143,-415.31553778,0.00012672,2]
[419709886,1775331038152,-304319.6047,0.00012672,2]
[419709888,1775331038162,-9999.99,0.00012672,2]
[419709890,1775331038171,-150.99,0.00012672,2]
[419709892,1775331038180,-9999.99,0.00012672,2]
[419709894,1775331038189,-999.99,0.00012672,2]
[419709896,1775331038198,-3338.42,0.00012672,2]
[419709898,1775331038207,-3292.32,0.00012672,2]
[419709900,1775331038216,-9999.99,0.00012672,2]
[419709902,1775331038225,-70034.6068,0.00012673,2]
[419709904,1775331038234,-2500.0,0.00012673,2]
[419709906,1775331038244,-3362.013,0.00012673,2]
[419709908,1775331038253,-181.61,0.00012673,2]
[419709910,1775331038262,-165.06846975,0.00012673,2]
[419709912,1775331038272,-1000.0,0.00012721,2]
[419709914,1775331038281,-1000.0,0.00012721,2]
[419709916,1775331038290,-324.0,0.0001274,2]
[419709918,1775331038299,-299.99,0.0001274,2]
[419709920,1775331038309,-1555.19,0.0001274,2]
[419709922,1775331038318,-2175.35,0.0001274,2]
[419709924,1775331038327,-150.99,0.0001274,2]
[419709926,1775331038336,-270.7801228,0.00012742,2]
[419709928,1775331038344,-767.61,0.00012765,2]
[419709930,1775331038353,-151.0,0.00012765,2]
[419709932,1775331038362,-151.0,0.00012765,2]
[419709934,1775331038371,-151.0,0.00012765,2]
[419709936,1775331038380,-151.0,0.00012765,2]
[419709938,1775331038389,-151.0,0.00012765,2]
[419709940,1775331038398,-151.0,0.00012765,2]
[419709942,1775331038407,-151.0,0.00012765,2]
[419709944,1775331038416,-151.0,0.00012765,2]
[419709946,1775331038426,-151.0,0.00012765,2]
[419709948,1775331038435,-151.0,0.00012765,2]
[419709949,1775331038444,-151.0,0.00012765,2]
[419709950,1775331038452,-503.9335937,0.00012772,2]
[419709951,1775331038462,-505.62281255,0.00012772,2]
[419709952,1775331038471,-453.4007953,0.00012772,2]
[419709953,1775331038480,-500.0,0.00012772,2]
[419709954,1775331038490,-500.0,0.00012772,2]
[419709955,1775331038499,-500.0,0.00012772,2]
[419709956,1775331038508,-292.34820308,0.00012772,2]
[419709957,1775331038519,-175.74758268,0.00012772,2]
[419709958,1775331038528,-464.12477202,0.00012772,2]
[419709959,1775331038537,-500.0,0.00012772,2]
[419709960,1775331038547,-500.0,0.00012773,2]
[419709961,1775331038558,-218.30362481,0.00012773,2]
[419709962,1775331038567,-500.0,0.00012773,2]
[419709963,1775331038576,-500.0,0.00012773,2]
[419709964,1775331038586,-500.0,0.00012773,2]
[419709965,1775331038595,-500.0,0.00012773,2]
[419709966,1775331038604,-500.0,0.00012773,2]
[419709967,1775331038614,-1976974.6746,0.00012773,2]
[419709968,1775331038624,-1602.77615536,0.00012842,2]
[419709969,1775331038632,-5000.0,0.0001287,2]
[419709970,1775331038642,-448.07422048,0.0001287,2]
[419709971,1775331038651,-1000.0,0.00012873,2]
[419709972,1775331038660,-174.0,0.00012873,3]
[419709973,1775331038670,-384.49,0.00012874,2]
[419709974,1775331038679,-17026.57235128,0.00012923,2]
[419709975,1775331038690,-10523.99379801,0.00012942,2]
[419709976,1775331038699,-767.61,0.00013039,2]
[419709977,1775331038708,-501.0,0.00013111,2]
[419709978,1775331038717,-420.0,0.00013181,2]
[419709979,1775331038726,-1680.0,0.00013208,2]
[419709980,1775331038737,-255.0,0.0001325,2]
[419709981,1775331038746,-1500.0,0.00013268,2]
[419709982,1775331038756,-1102.78280616,0.00013268,2]
[419709983,1775331038766,-10523.99379801,0.00013312,2]
[419709984,1775331038775,-767.61,0.00013313,2]
[419709985,1775331038784,-1000.0,0.00013321,2]
[419709986,1775331038794,-1000.0,0.00013321,2]
[419709987,1775331038803,-1000.0,0.00013321,2]
[419709988,1775331038812,-1000.0,0.00013321,2]
[419709989,1775331038822,-1000.0,0.00013321,2]
[419709990,1775331038835,-1000.0,0.00013321,2]
[419709991,1775331038844,-17026.57235128,0.00013349,2]
[419709992,1775331038854,-1406.48,0.000134,2]
[419709993,1775331038863,-3240.0,0.00013425,2]
[419709994,1775331038872,-266.36,0.00013501,2]
[419709995,1775331038881,-767.61,0.00013587,2]
[419709996,1775331038891,-10523.99379801,0.00013681,2]
[419709997,1775331038900,-500.0,0.00013698,2]
[419709998,1775331038909,-500.0,0.00013698,2]
[419709999,1775331038918,-500.0,0.00013698,2]
[419710000,1775331038927,-500.0,0.00013698,2]
[419710001,1775331038937,-500.0,0.00013698,2]
[419710002,1775331038948,-500.0,0.00013698,2]
[419710003,1775331038957,-500.0,0.00013698,2]
[419710004,1775331038967,-500.0,0.00013698,2]
[419710005,1775331038976,-500.0,0.00013698,2]
[419710006,1775331038986,-500.0,0.00013698,2]
[419710007,1775331038996,-500.0,0.00013698,2]
[419710008,1775331039009,-500.0,0.00013698,2]
[419710009,1775331039019,-500.0,0.00013698,2]
[419710010,1775331039028,-500.0,0.00013698,2]
[419710011,1775331039039,-500.0,0.00013698,2]
[419710012,1775331039049,-500.0,0.00013698,2]
[419710013,1775331039059,-500.0,0.00013698,2]
[419710014,1775331039069,-500.0,0.00013698,2]
[419710015,1775331039080,-462.33955414,0.00013698,2]
[419710016,1775331039090,-500.0,0.00013698,2]
[419710017,1775331039100,-500.0,0.00013698,2]
[419710018,1775331039111,-500.0,0.00013698,2]
[419710019,1775331039121,-500.0,0.00013698,2]
[419710020,1775331039130,-500.0,0.00013698,2]
[419710021,1775331039140,-500.0,0.00013698,2]
[419710022,1775331039150,-500.0,0.00013698,2]
[419710023,1775331039159,-500.0,0.00013698,2]
[419710024,1775331039169,-500.0,0.00013698,2]
[419710025,1775331039178,-500.0,0.00013698,2]
[419710026,1775331039187,-500.0,0.00013698,2]
[419710027,1775331039198,-500.0,0.00013698,2]
[419710028,1775331039208,-500.0,0.00013698,2]
[419710029,1775331039218,-500.0,0.00013698,2]
[419710030,1775331039228,-500.0,0.00013698,2]
[419710031,1775331039239,-500.0,0.00013698,2]
[419710032,1775331039248,-500.0,0.00013698,2]
[419710033,1775331039259,-500.0,0.00013698,2]
[419710034,1775331039269,-500.0,0.00013698,2]
[419710035,1775331039278,-500.0,0.00013698,2]
[419710036,1775331039287,-500.0,0.00013698,2]
[419710037,1775331039297,-500.0,0.00013698,2]
[419710038,1775331039307,-500.0,0.00013698,2]
[419710039,1775331039316,-475.31700749,0.00013698,2]
[419710040,1775331039325,-500.0,0.00013698,2]
[419710041,1775331039334,-500.0,0.00013698,2]
[419710042,1775331039344,-500.0,0.00013698,2]
[419710043,1775331039353,-500.0,0.00013698,2]
[419710044,1775331039362,-500.0,0.00013698,2]
[419710045,1775331039372,-500.0,0.00013698,2]
[419710046,1775331039381,-500.0,0.00013698,2]
[419710047,1775331039390,-500.0,0.00013698,2]
[419710048,1775331039399,-500.0,0.00013698,2]
[419710049,1775331039409,-500.0,0.00013698,2]
[419710050,1775331039418,-500.0,0.00013698,2]
[419710051,1775331039428,-500.0,0.00013698,2]
[419710052,1775331039437,-500.0,0.00013698,2]
[419710053,1775331039446,-500.0,0.00013698,2]
[419710054,1775331039456,-500.0,0.00013698,2]
[419710055,1775331039466,-500.0,0.00013698,2]
[419710056,1775331039478,-500.0,0.00013698,2]
[419710057,1775331039489,-500.0,0.00013698,2]
[419710058,1775331039498,-427.66291618,0.00013698,2]
[419710059,1775331039508,-500.0,0.00013698,2]
[419710060,1775331039517,-500.0,0.00013698,2]
[419710061,1775331039526,-500.0,0.00013698,2]
[419710062,1775331039535,-500.0,0.00013698,2]
[419710063,1775331039545,-500.0,0.00013698,2]
[419710064,1775331039555,-500.0,0.00013698,2]
[419710065,1775331039565,-500.0,0.00013698,2]
[419710066,1775331039574,-500.0,0.00013698,2]
[419710067,1775331039584,-500.0,0.00013698,2]
[419710068,1775331039593,-500.0,0.00013698,2]
[419710069,1775331039604,-500.0,0.00013698,2]
[419710070,1775331039613,-500.0,0.00013698,2]
[419710071,1775331039622,-500.0,0.00013698,2]
[419710072,1775331039632,-500.0,0.00013698,2]
[419710073,1775331039642,-540.38303843,0.00013698,2]
[419710074,1775331039652,-500.0,0.00013698,2]
[419710075,1775331039661,-500.0,0.00013698,2]
[419710076,1775331039671,-268.57302384,0.00013698,2]
[419710077,1775331039680,-500.0,0.00013698,2]
[419710078,1775331039689,-500.0,0.00013698,2]
[419710079,1775331039698,-500.0,0.00013698,2]
[419710080,1775331039707,-500.0,0.00013698,2]
[419710081,1775331039716,-500.0,0.00013698,2]
[419710082,1775331039725,-500.0,0.00013698,2]
[419710083,1775331039734,-500.0,0.00013698,2]
[419710084,1775331039743,-500.0,0.00013698,2]
[419710085,1775331039753,-500.0,0.00013698,2]
[419710086,1775331039772,-500.0,0.00013698,2]
[419710087,1775331039783,-500.0,0.00013698,2]
[419710088,1775331039793,-500.0,0.00013698,2]
[419710089,1775331039803,-500.0,0.00013698,2]
[419710090,1775331039813,-500.0,0.00013698,2]
[419710091,1775331039822,-500.0,0.00013698,2]
[419710092,1775331039832,-500.0,0.00013698,2]
[419710094,1775331039842,-500.0,0.00013698,2]
[419710095,1775331039852,-561.59815036,0.00013698,2]
[419710096,1775331039863,-500.0,0.00013698,2]
[419710097,1775331039872,-500.0,0.00013698,2]
[419710098,1775331039882,-500.0,0.00013698,2]
[419710099,1775331039892,-500.0,0.00013698,2]
[419710100,1775331039902,-500.0,0.00013698,2]
[419710101,1775331039912,-500.0,0.00013698,2]
[419710102,1775331039922,-500.0,0.00013698,2]
[419710103,1775331039932,-500.0,0.00013698,2]
[419710104,1775331039942,-500.0,0.00013698,2]
[419710105,1775331039952,-500.0,0.00013698,2]
[419710106,1775331039961,-196.18640061,0.00013698,2]
[419710107,1775331039971,-150.0,0.00013699,2]
[419710108,1775331039981,-150.0,0.00013699,2]
[419710109,1775331039991,-3474.47,0.00013699,2]
[419710110,1775331040003,-609.23348249,0.00013699,2]
[419710111,1775331040013,-500.0,0.00013699,2]
[419710112,1775331040022,-307.35572359,0.00013699,2]
[419710113,1775331040032,-500.0,0.00013699,2]
[419710114,1775331040042,-500.0,0.00013699,2]
[419710115,1775331040052,-500.0,0.00013699,2]
[419710116,1775331040062,-500.0,0.00013699,2]
[419710117,1775331040073,-500.0,0.00013699,2]
[419710118,1775331040082,-500.0,0.00013699,2]
[419710119,1775331040092,-165.64274187,0.00013699,2]
[419710120,1775331040102,-500.0,0.00013699,2]
[419710121,1775331040112,-500.0,0.00013699,2]
[419710122,1775331040121,-290.9357212,0.00013699,2]
[419710123,1775331040131,-181.79,0.000137,2]
[419710124,1775331040140,-181.79,0.000137,2]
[419710125,1775331040150,-181.79,0.000137,2]
[419710126,1775331040162,-17026.57235128,0.00013774,2]
[419710127,1775331040173,-2011.5547996,0.00013816,2]
[419710128,1775331040183,-1115.0,0.0001384,2]
[419710129,1775331040194,-500.0,0.0001385,2]
[419710130,1775331040204,-500.0,0.0001385,2]
[419710131,1775331040214,-767.61,0.00013861,2]
[419710132,1775331040223,-1500.0,0.00013868,2]
[419710133,1775331040233,-1500.0,0.00013868,2]
[419710134,1775331040242,-1500.0,0.00013868,2]
[419710135,1775331040252,-1500.0,0.00013868,2]
[419710136,1775331040262,-839.64282887,0.00013868,2]
[419710137,1775331040272,-500.0,0.000139,2]
[419710138,1775331040281,-500.0,0.00013921,2]
[419710139,1775331040291,-500.0,0.00013925,2]
[419710140,1775331040301,-500.0,0.00013925,2]
[419710141,1775331040310,-178.83121777,0.00013938,2]
[419710142,1775331040321,-500.0,0.00013938,2]
[419710143,1775331040331,-500.0,0.00013938,2]
[419710144,1775331040340,-500.0,0.00013957,2]
[419710145,1775331040349,-500.0,0.00013957,2]
[419710146,1775331040359,-500.0,0.00013957,2]
[419710147,1775331040368,-500.0,0.00013957,2]
[419710148,1775331040378,-500.0,0.00013957,2]
[419710149,1775331040388,-500.0,0.00013957,2]
[419710150,1775331040397,-500.0,0.00013957,2]
[419710151,1775331040407,-500.0,0.00013957,2]
[419710152,1775331040416,-503.0996884,0.00013957,2]
[419710153,1775331040426,-500.0,0.00013957,2]
[419710154,1775331040436,-500.0,0.00013957,2]
[419710155,1775331040445,-312.69903259,0.00013957,2]
[419710156,1775331040455,-500.0,0.00013957,2]
[419710157,1775331040464,-500.0,0.00013957,2]
[419710158,1775331040474,-500.0,0.00013957,2]
[419710159,1775331040484,-500.0,0.00013957,2]
[419710160,1775331040494,-500.0,0.00013957,2]
[419710161,1775331040505,-500.0,0.00013975,2]
[419710162,1775331040515,-500.0,0.00013975,2]
[419710163,1775331040525,-500.0,0.00013975,2]
[419710164,1775331040535,-501.4995107,0.00013975,2]
[419710165,1775331040545,-500.0,0.00013975,2]
[419710166,1775331040555,-500.0,0.00013975,2]
[419710167,1775331040565,-500.0,0.00013975,2]
[419710168,1775331040574,-3091.81003326,0.00013998,2]
[419710169,1775331040584,-10523.99379801,0.00014051,2]
[419710170,1775331040593,-500.0,0.00014068,2]
[419710171,1775331040608,-767.6291124,0.00014135,2]
[419710172,1775331040618,-500.0,0.00014173,2]
[419710173,1775331040628,-306.90768699,0.00014173,2]
[419710174,1775331040639,-500.0,0.00014173,2]
[419710175,1775331040648,-155.0,0.00014182,2]
[419710176,1775331040659,-500.0,0.00014182,2]
[419710177,1775331040669,-150.0,0.00014183,2]
[419710178,1775331040680,-150.0,0.00014183,2]
[419710179,1775331040690,-150.0,0.00014183,2]
[419710180,1775331040699,-216.19443643,0.00014183,2]
[419710181,1775331040710,-4387.0,0.00014188,2]
[419710182,1775331040720,-4387.0,0.00014188,2]
[419710183,1775331040730,-672.0,0.00014188,2]
[419710184,1775331040740,-4387.0,0.00014188,2]
[419710185,1775331040749,-672.0,0.00014188,2]
[419710186,1775331040759,-4387.0,0.00014188,2]
[419710187,1775331040769,-4387.0,0.00014188,2]
[419710188,1775331040779,-672.0,0.00014188,2]
[419710189,1775331040790,-4387.0,0.00014188,2]
[419710190,1775331040800,-672.0,0.00014188,2]
[419710191,1775331040810,-4387.0,0.00014188,2]
[419710192,1775331040820,-672.0,0.00014188,2]
[419710193,1775331040830,-4387.0,0.00014188,2]
[419710194,1775331040841,-672.0,0.00014188,2]
[419710195,1775331040850,-4387.0,0.00014188,2]
[419710196,1775331040861,-672.0,0.00014188,2]
[419710197,1775331040872,-4387.0,0.00014188,2]
[419710198,1775331040882,-672.0,0.00014188,2]
[419710199,1775331040892,-4387.0,0.00014188,2]
[419710200,1775331040902,-672.0,0.00014188,2]
[419710201,1775331040911,-4387.0,0.00014188,2]
[419710202,1775331040921,-672.0,0.00014188,2]
[419710203,1775331040932,-4387.0,0.00014188,2]
[419710204,1775331040942,-672.0,0.00014188,2]
[419710205,1775331040952,-672.0,0.00014188,2]
[419710206,1775331040962,-672.0,0.00014188,2]
[419710207,1775331040972,-4387.0,0.00014188,2]
[419710208,1775331040981,-672.0,0.00014188,2]